Cogmind - Beta 13 @@@ ROGUE MODE // 2024.07.04 @ 18:35:27 Player: MoonDog Result: Self-destructed Performance ------------- Evolutions (1) 500 Regions Visited (2) 400 Robots Destroyed (6) 30 Value Destroyed (107) 107 Prototype IDs (1) 20 Alien Tech Used (0) 0 Bonus (0) 0 TOTAL SCORE: 1057 Bonus ------- None Cogmind --------- Core Integrity 115/400 Matter 201/300 Energy 100/100 System Corruption 0% Temperature Cool (0) Movement Core (100) Ox1 Location -9/Materials Parts ------- > --- POWER (1) -------- (None) > --- PROPULSION (2) --- (None) > --- UTILITY (4) ------ Visual Processing Unit Signal Interpreter Improved Targeting Computer > --- WEAPON (2) ------- Great Maul > --- INVENTORY (5) ---- Ion Engine Advanced Beam Cannon Grenade Launcher Grenade Launcher Mace Peak State ------------ > --- POWER ------------ Ion Engine > --- PROPULSION ------- Flight Unit Flight Unit > --- UTILITY ---------- Visual Processing Unit Signal Interpreter Improved Targeting Computer > --- WEAPON ----------- EM Shotgun Advanced Beam Cannon > --- INVENTORY -------- Flight Unit Grenade Launcher Grenade Launcher Mace [Rating: 13] Favorites ----------- Power Light Ion Engine Engine Light Ion Engine Propulsion Flight Unit Wheel Wheel Flight Unit Flight Unit Utility Signal Interpreter Processor Signal Interpreter Weapon Assault Rifle Energy Gun EM Shotgun Energy Cannon Advanced Beam Cannon Ballistic Gun Assault Rifle Launcher Grenade Launcher Impact Weapon Mace Build | -11 -10 -9 ------- Run | Yrd Mat Mat Slots Evolved 2 | . . 2 Power . | . . . Propulsion . | . . . Utility 2 | . . 2 Weapon . | . . . Parts Attached 22 | 3 11 8 Power 3 | . 2 1 Engine 3 | . 2 1 Core . | . . . Reactor . | . . . Propulsion 5 | 2 2 1 Treads . | . . . Leg . | . . . Wheel 2 | 2 . . Hover . | . . . Flight 3 | . 2 1 Utility 3 | . 2 1 Device . | . . . Storage . | . . . Processor 3 | . 2 1 Hackware . | . . . Protection . | . . . Artifact . | . . . Weapon 11 | 1 5 5 Energy Gun 1 | . . 1 Energy Cannon 1 | . . 1 Ballistic Gun 4 | 1 3 . Ballistic Cannon . | . . . Launcher 3 | . 2 1 Special Weapon . | . . . Impact Weapon 2 | . . 2 Slashing Weapon . | . . . Piercing Weapon . | . . . Special Melee Weapon . | . . . Unidentified Prototypes 1 | . . 1 Parts Lost 6 | . 1 5 Power 2 | . 1 1 Propulsion 3 | . . 3 Utility . | . . . Weapon 1 | . . 1 Highest Loss Streak 4 | . 1 4 To Critical Strikes . | . . . Average Slot Usage (%) 69 | . 72 64 Engine 6 | . 7 4 Wheel 4 | . 7 . Flight 18 | . 20 15 Processor 19 | . 13 29 Energy Gun 1 | . . 3 Ballistic Gun 12 | . 21 . Launcher 2 | . 1 3 Impact Weapon 3 | . . 8 Naked Turns . | . . . Heaviest Build 8 | 2 7 8 Greatest Support 8 | 3 8 8 Greatest Overweight (x) 1 | . . 1 Average Overweight (x) . | . . . Largest Inventory Capacity 5 | 5 5 5 Average Capacity 5 | 5 5 5 Most Carried 5 | 2 5 5 Average Carried 4 | 1 4 4 Final Capacity 5 | 5 5 5 Final Carried 5 | 2 5 5 Class Distribution -------------------- 50% | Mutant 49% | Scavenger-Mutant Dominant Class ---------------- Mutant | -10/Materials Scavenger-Mutant | -9/Materials Resources | -11 -10 -9 ----------- Run | Yrd Mat Mat Matter Collected 393 | 220 94 79 Remotely . | . . . Salvage Created 154 | . 94 60 Parts 20 | . 14 6 Haulers Intercepted . | . . . Recyclers Shooed 1 | . . 1 Parts Field Recycled . | . . . Retrieved Matter . | . . . Parts Self-Destructed . | . . . Prevented . | . . . Kills | -11 -10 -9 ------- Run | Yrd Mat Mat Combat Hostiles Destroyed 4 | . 3 1 Guns 4 | . 3 1 Classes Destroyed 3 | . 2 1 Watcher 2 | . 2 . Swarmer 3 | . 3 . Sentry 1 | . . 1 Best Kill Streak 3 | . 3 1 Combat Bots Only 3 | . 3 1 Max Kills in Single Turn 1 | . 1 1 Gunslinging . | . . . Exploded . | . . . Melee . | . . . Uniques/NPCs Destroyed . | . . . Combat | -11 -10 -9 -------- Run | Yrd Mat Mat Hostile Shots Fired 95 | . 28 67 Missed 41 | . 16 25 Damage Taken 743 | . 193 550 Core 326 | . 41 285 Absorbed by Shields . | . . . Core Remaining (%) 91 | 100 83 . Volleys Fired 28 | . 20 8 Largest 2 | . 2 1 Hottest 45 | . 40 45 Shots Fired 42 | . 34 8 Gun 41 | . 34 7 Cannon . | . . . Launcher 1 | . . 1 Special . | . . . Kinetic 34 | . 34 . Thermal . | . . . Explosive 1 | . . 1 Electromagnetic 7 | . . 7 Robot Hit Streak 9 | . 3 9 Robot Miss Streak 6 | . 6 1 Penetration Max . | . . . Secondary Targets . | . . . Shots Hit Robots 21 | . 12 9 Core Hits 14 | . 6 8 Critical Kills . | . . . Critical Parts Destroyed . | . . . Critical Strikes . | . . . Melee Attacks 8 | . . 8 Impact 8 | . . 8 Slashing . | . . . Piercing . | . . . Sneak Attacks . | . . . Combat Hostiles . | . . . Follow-up Attacks . | . . . Damage Inflicted 338 | . 171 167 Guns 266 | . 171 95 Cannons 12 | . . 12 Explosions 36 | . . 36 Melee 24 | . . 24 Ramming . | . . . Kinetic 171 | . 171 . Thermal . | . . . Explosive 36 | . . 36 Electromagnetic 95 | . . 95 Impact 36 | . . 36 Slashing . | . . . Piercing . | . . . Highest Corruption . | . . . Average Corruption . | . . . Corruption Purged . | . . . Corruption Blocked . | . . . Overload Shots . | . . . Overflow Damage . | . . . Projectiles . | . . . Explosions . | . . . Melee . | . . . Knockbacks . | . . . Impact . | . . . Kinetic . | . . . Secondary . | . . . Self-Inflicted Damage . | . . . Shots . | . . . Rammed . | . . . Targets Rammed . | . . . Kicked . | . . . Crushed . | . . . Highest Temperature 11 | . . 11 Average Temperature 11 | . . 11 Received Heat Transfer 192 | . 30 162 Siege Activations . | . . . Robots Corrupted . | . . . Combat Hostiles . | . . . Parts Fried . | . . . Impact Corruptions . | . . . Robots Melted . | . . . Combat Hostiles . | . . . Parts Melted . | . . . Heat Transferred . | . . . Parts Sabotaged . | . . . Parts Stolen . | . . . Parts Stripped . | . . . Power Chain Reactions . | . . . Alert | -11 -10 -9 ------- Run | Yrd Mat Mat Peak Influence 161 | . 161 155 Initial 67 | . . 67 Average 86 | . 83 103 Maximum Alert Level . | . . . Low Security (%) 100 | 100 100 100 Level 1 . | . . . Level 2 . | . . . Level 3 . | . . . Level 4 . | . . . Level 5 . | . . . High Security . | . . . Max Security . | . . . Squads Dispatched 3 | . 3 . Investigation 2 | . 2 . Extermination . | . . . Reinforcement 1 | . 1 . Assault . | . . . Garrison . | . . . Intercept . | . . . Searches Triggered . | . . . Construction Impeded . | . . . Haulers Reinforced . | . . . Active Scanning Responses . | . . . Cargo Convoy Interrupts . | . . . Stealth | -11 -10 -9 --------- Run | Yrd Mat Mat Distress Signals 3 | . 1 2 Communications Jammed . | . . . Distress Signals . | . . . Times Spotted 29 | . 17 12 Peak Tracking Total 12 | . 7 12 Tactical Retreats 1 | . 1 . Traps | -11 -10 -9 ------- Run | Yrd Mat Mat Traps Triggered 2 | . 2 . Indirectly . | . . . Trap Hack Attempts . | . . . Triggered . | . . . Disarmed . | . . . Reprogrammed . | . . . Reused . | . . . Traps Extracted . | . . . Installed . | . . . Triggered . | . . . Machines | -11 -10 -9 ---------- Run | Yrd Mat Mat Machines Disabled . | . . . Max in Single Turn . | . . . Machines Repaired . | . . . Machines Dismantled . | . . . Machines Sabotaged . | . . . Overloaded Fab Kills . | . . . Hacking | -11 -10 -9 --------- Run | Yrd Mat Mat Machines Accessed 8 | . 5 3 Terminals 8 | . 5 3 Fabricators . | . . . Repair Stations . | . . . Recycling Units . | . . . Scanalyzers . | . . . Garrison Access . | . . . Total Hacks 18 | . 11 7 Successful 12 | . 7 5 Failed 6 | . 4 2 Catastrophic 1 | . 1 . Database Lockouts . | . . . Manual 15 | . 11 4 Terminals 18 | . 11 7 Fabricators . | . . . Repair Stations . | . . . Recycling Units . | . . . Scanalyzers . | . . . Garrison Access . | . . . Terminal Hacks 4 | . 1 3 Record 1 | . . 1 Terminal Index 2 | . 1 1 Zone Layout 1 | . . 1 Fabricator Hacks . | . . . Repair Station Hacks . | . . . Recycling Unit Hacks . | . . . Scanalyzer . | . . . Garrison Access Hacks . | . . . Unauthorized Hacks 8 | . 6 2 Terminals 8 | . 6 2 Botnet 6 | . 5 1 Operators 2 | . 1 1 Fabricators . | . . . Repair Stations . | . . . Recycling Units . | . . . Scanalyzers . | . . . Garrison Access . | . . . Data Cores Recovered 1 | . . 1 Used 1 | . . 1 Hacking Detections 6 | . 4 2 Full Trace Events . | . . . Feedback Events . | . . . Feedback Blocked . | . . . Robot Schematics Acquired . | . . . Robots Built . | . . . Authchips . | . . . Time . | . . . Total Robot Build Rating . | . . . Part Schematics Acquired . | . . . Parts Built . | . . . Authchips . | . . . Time . | . . . Total Part Build Rating . | . . . Parts Repaired . | . . . Time . | . . . Parts Recycled . | . . . Recycled Matter . | . . . Retrieved Matter . | . . . Retrieved Components . | . . . Parts Scanalyzed . | . . . Part Schematics Acquired . | . . . Parts Damaged . | . . . Bothacking | -11 -10 -9 ------------ Run | Yrd Mat Mat Used RIF Installer . | . . . Robots Hacked . | . . . Non-combat . | . . . Combat . | . . . Robot Hacks Applied . | . . . Relay Couplers Released . | . . . Fabnet Peak Effective % . | . . . Robots Rewired . | . . . Allies Hacked . | . . . Hacks Repelled . | . . . Allies | -11 -10 -9 -------- Run | Yrd Mat Mat Total Allies . | . . . Largest Group . | . . . Highest-Rated Group . | . . . Highest-Rated Ally . | . . . Total Orders . | . . . Ally Attacks . | . . . Total Damage . | . . . Kills . | . . . Allies Corrupted . | . . . Allies Melted . | . . . Intel | -11 -10 -9 ------- Run | Yrd Mat Mat Robot Analysis Total . | . . . Derelict Logs Recovered . | . . . Drone Launches . | . . . Drone Recoveries . | . . . Exploration | -11 -10 -9 ------------- Run | Yrd Mat Mat Turns Passed 517 | 28 290 199 Spaces Moved 620 | 42 305 273 Core 124 | 42 40 42 Treads . | . . . Legs . | . . . Wheels . | . . . Hover . | . . . Flight 496 | . 265 231 Fastest Speed 37 | 50 37 37 Average Speed 43 | 50 38 46 Slowest Speed 100 | 50 50 100 Overloaded Moves . | . . . Propulsion Burnouts . | . . . Robots Hopped 9 | . 5 4 Cave-ins Triggered . | . . . Exploration Rate (%) 34 | 3 64 35 Regions Visited 2 Branch Regions . Pre-discovered Areas . | . . . Known Exits Taken 1 | . 1 . Unknown Exits Taken 1 | 1 . . Scrap Searched . | . . . Spaces Dug 7 | . . 7 Terrain Destroyed 11 | . . 11 Melee 7 | . . 7 Projectile . | . . . AOE 4 | . . 4 Terrain Rammed . | . . . Walls Destroyed . | . . . Machines Disabled . | . . . Actions | -11 -10 -9 --------- Run | Yrd Mat Mat Total 801 | 46 439 316 Wait 109 | . 92 17 Move 600 | 41 294 265 Hop 9 | . 5 4 Pick Up 10 | 2 6 2 Fast Attach 16 | 3 9 4 Attach 4 | . 2 2 Detach 5 | . 3 2 Swap 2 | . . 2 Drop 10 | . 8 2 Fire 28 | . 20 8 Melee 8 | . . 8 Ram . | . . . Kick . | . . . Crush . | . . . Escape Stasis . | . . . Rewire . | . . . Trap . | . . . Miscellaneous . | . . . Route ------- -11/Scrapyard -10/Materials (discovered 2 exits: *Mat / [*Min]) -9/Materials History --------- Turn | Location | Event 14 | -11/Scrapyard | Discovered new exit (range 16) 29 | -11/Scrapyard | Entered Materials 287 | -10/Materials | Discovered new exit (range 17) 314 | -10/Materials | Discovered new exit (range 10) 319 | -10/Materials | Identified exit to Materials 319 | -10/Materials | Entered another Materials area 319 | -9/Materials | Evolved 2 slots: Utility x2 464 | -9/Materials | Core integrity fell below 50% 494 | -9/Materials | Lost 4 parts (3n1w) 518 | -9/Materials | Self-destructed Last Messages --------------- 00485_ Y-45 Defender misfires. 00486_ K-01 Serf collects debris. 00510_ Connecting with Terminal... >>Layout(Zone) Retrieving Zone 1F layout... Downloaded map data. >>Query(Authchip) Early [Fabricator] systems were more openly accessible, but rampant abuse by [Derelict] intruders made it necessary to introduce an authorization system to limit unauthorized use of resources. An authchip is now required to load schematics and initiate build orders, and the chips have been divided by schematic category to further limit the potential for abuse. 00513_ W-16 Scout sends out distress signal. 00514_ O-16 Technician: "IFF HANDSHAKE FAILED. SECURING TERMINAL." 00516_ K-01 Serf cleans the Fusion Modulator. Map ----- +----------------------------------------------------+ | ?????????????????????????????????????????????????? | | ?????????????????????????????????????????????????? | | ?????????????????????????????????????????????????? | | ?????????????????????????????????????????????????? | | ?????????????????????????????????????????????????? | | ?????????????????????????????????????????????????? | | ?????????????????????????????????????????????????? | | ?????????????????????????????????????????????????? | | ?????????????????????????????????????????????????? | | ?????????????????????????????????????????????????? | | ?????????????????????????????????????????????????? | | ?????????????????????????????????????????????????? | | ?????????????????????????????????????????????????? | | ?????????????????????????????????????????????????? | | ?????????????????????????????????????????????????? | | ?????????????????????????????????????????????????? | | ??????????????????????????##########?????????????? | | ????????????????#######+### ??????????????? | | ?????????? #######????????? | | ?????????? #??????????????? | | ?????????? T #??????????????? | | ?????????? o w #######????????? | | ??????????""" """ """ """ # ????????? | | ??????????""" """ """ """ ! # ????????? | | ??????????""" """ """ """ # ????????? | | ???????? s r k @ # " " ????????? | | ???????? s w # "R" ????????? | | ???????? + """ ??????#/# | | ???????? #######??????# # | | ????????? ###"T"#T#"T"#######+###+####??#??????# # | | ??????????#?########### #??#??????# # | | ??????????#???????????# """ """ ##??#??????# # | | ??????????########????# """ """ #####??????+ # | | ?????????? #????# "T" """ """ # ???????# # | | ?????????? #????# """ #####??????# # | | ?????????? #????# #?#######??# / | | ??????????#### ######"############### #??# # | | ?????????? # ^ #??# # | | ?????????? # ^ #??# | | ??????????"" + ^ #### | | ??????????"" # ###########"########## # # | | ??????????"" # #?????????# #????????## | | ??????????#### #?????????#"########### | | ???????????####+#####??????# # | | ???????????# #??????# # | | ???????????# """ #??????# """ # ## # | | ???????????# """ #??????# """ # # | | ???????????# """ #??????# """ # # | | ???????????# #??????# "T" + # | | ???????????????????????????# """ # " | +----------------------------------------------------+ Best States ------------- Heat Dissipation 28 Energy Generation 10 Energy Capacity 250 Matter Stores 290 Matter Capacity 300 Sight Range 18 Terrain Scan Density 10 Evasion (%) 62 Targeting Accuracy 6 Item Schematics ----------------- None Robot Schematics ------------------ None Fabricated ------------ Nothing Alien Tech Used ----------------- None Achievements -------------- None Challenges ------------ None Game ------ Seed LinkedSmartbombWand Manual? 0 Play Time 00:13:32 Cumulative 141.1 hours Start 2024.07.04 @ 18:21:12 End 2024.07.04 @ 18:35:27 Sessions 1 Manual Loads 0 Difficulty Rogue Special Mode None Game No. 130 Rogue 130 Adventurer 0 Explorer 0 Win Type - Total 1 Types 1/0/0/0/0/0/0/0/0 Lore% 39 Gallery% 56 Achievement% 48 Wizard Run 0 Options --------- Layout 1 ASCII 0 Keyboard 0 Movement Numpad Keybinds 0 Fullscreen 1 Font 24/Smallcaps Map View 50x35 Zoom Use 0% Tactical HUD 1 Map Filters NONE Filters NONE Steam 1 RUN: 3b13c11c-8b02-4c79-bb31-daced964ff84